bitfinex-derivatives/quotes_SOLF0:USTF0_20250819
["timestamp","ask_amount","ask_price","bid_price","bid_amount"]
[1755575110272,4.3340867,179.42,179.26,3.02]
[1755575110567,4.3340867,179.41,179.26,3.02]
[1755575110762,4.3340867,179.4,179.26,3.02]
[1755575110967,7.38013845,179.39,179.26,3.02]
[1755575111168,4.32013845,179.38,179.26,3.02]
[1755575111371,4.32013845,179.37,179.26,3.02]
[1755575111568,3.06,179.39,179.26,3.02]
[1755575111763,4.31973058,179.38,179.26,3.02]
[1755575111959,3.06,179.39,179.26,3.02]
[1755575112172,4.31974138,179.38,179.26,3.02]
[1755575112371,4.31974138,179.37,179.26,3.02]
[1755575112573,4.31974138,179.36,179.21,3.02]
[1755575112869,4.31974138,179.35,179.21,3.02]
[1755575113070,4.31974138,179.34,179.21,8.5971]
[1755575113369,3.06,179.39,179.21,8.5971]
[1755575113573,6.96287732,179.38,179.21,8.5971]
[1755575113768,4.31894171,179.37,179.21,8.5971]
[1755575114070,4.31894171,179.36,179.21,8.5971]
[1755575114268,4.31894171,179.35,179.21,8.5971]
[1755575114465,3.06,179.37,179.21,3.02]
[1755575114674,3.06,179.35,179.21,3.02]
[1755575114879,4.31741536,179.34,179.21,3.02]
[1755575115280,3.06,179.33,179.21,3.02]
[1755575115485,4.3177756,179.32,179.21,3.02]
[1755575115689,3.06,179.33,179.21,3.02]
[1755575115884,4.31777385,179.32,179.21,3.02]
[1755575116084,3.06,179.33,179.21,3.02]
[1755575116287,4.31816002,179.32,179.21,3.02]
[1755575116482,3.06,179.33,179.21,3.02]
[1755575117686,3.06,179.33,179.15,3.02]
[1755575118287,3.06,179.31,179.15,3.02]
[1755575118786,3.06,179.31,179.17,5.5783]
[1755575118991,3.06,179.31,179.18,3.02]
[1755575120990,3.06,179.36,179.18,3.02]
[1755575121694,3.06,179.42,179.19,6.14048978]
[1755575121898,3.06,179.42,179.2,3.02]
[1755575122496,3.06,179.42,179.21,3.06]
[1755575122899,3.06,179.42,179.22,3.06]
[1755575123510,3.06,179.42,179.23,3.06]
[1755575123902,2.98,179.41,179.23,3.06]
[1755575125491,19.77,179.41,179.23,3.06]
[1755575125697,2.98,179.4,179.23,3.06]
[1755575128299,2.98,179.39,179.23,3.06]
[1755575129110,16.79,179.39,179.23,3.06]
[1755575129309,177.42,179.42,179.18,6.14048978]
[1755575129310,2.98,179.35,179.18,6.14048978]
[1755575129604,16.79,179.32,179.17,3.06]
[1755575129809,2.98,179.27,179.12,3.06]
[1755575130008,11.33751802,179.26,179.12,3.06]
[1755575130210,180.89405828,179.25,179.12,3.06]
[1755575130409,176.82,179.25,179.12,3.06]
[1755575130812,2.98,179.26,179.12,3.06]
[1755575131508,374.76,179.27,179.12,3.06]
[1755575131706,377.74,179.27,179.12,3.06]
[1755575132107,2.98,179.25,179.06,3.06]
[1755575133212,2.98,179.25,179.06,9.20048978]
[1755575133413,179.34,179.25,179.07,3.06]
[1755575134111,2.98,179.24,179.07,3.06]
[1755575136313,2.98,179.21,179.07,3.06]
[1755575136512,16.79,179.19,179.01,3.06]
[1755575136711,2.98,179.17,179.01,3.06]
[1755575137009,16.79,179.17,179.01,3.06]
[1755575137209,16.79,179.16,179.01,3.06]
[1755575137408,2.98,179.15,179.01,3.06]
[1755575139322,177.94,179.15,179.01,3.06]
[1755575139515,6.06330792,179.26,179.01,3.06]
[1755575139516,3.95153785,179.25,179.01,3.06]
[1755575139721,2.98,179.25,179.01,3.06]
[1755575140023,3.95167348,179.23,179.01,3.06]
[1755575140516,2.98,179.22,179.01,3.06]
[1755575140707,2.98,179.2,179.01,3.06]
[1755575140914,2.98,179.19,179.01,3.06]
[1755575142321,16.79,179.19,179.01,3.06]
[1755575142617,2.98,179.16,179.01,3.06]
[1755575143016,2.98,179.21,179.01,3.06]
[1755575143921,174.58,179.24,179.01,3.06]
[1755575144219,0.03700097,179.13,179.01,18.9434052]
[1755575144416,0.03700097,179.13,179.02,3.06]
[1755575144616,2.98,179.19,179.02,3.06]
[1755575145519,2.98,179.17,179.02,3.06]
[1755575145722,0.03606582,179.12,179.02,3.06]
[1755575146122,0.03606582,179.12,179.08,0.03609156]
[1755575146317,0.03606582,179.12,179.08,3.09609156]
[1755575146513,0.03606582,179.12,179.08,0.03609156]
[1755575146816,3.01606582,179.12,179.08,0.03609156]
[1755575147114,2.98,179.11,179.08,0.03609156]
[1755575147421,0.03606582,179.12,179.08,0.03609156]
[1755575148620,2.98,179.1,179.08,0.03609156]
[1755575148822,0.03606582,179.12,179.08,0.03609156]
[1755575150221,3.01606582,179.12,179.08,0.03609156]
[1755575150419,2.98,179.11,179.08,0.03609156]
[1755575150623,2.98,179.09,178.98,3.06]
[1755575151822,2.98,179.09,178.91,3.06]
[1755575152019,0.04048547,179.05,178.91,3.06]
[1755575152516,176.18,179.09,178.91,3.06]
[1755575152714,0.04123746,179.0,178.91,3.06]
[1755575158811,0.04123746,179.0,178.82,3.18]
[1755575159028,0.04123746,179.0,178.79,3.18]
[1755575159325,3.06,179.01,178.79,3.18]
[1755575159528,3.06,179.01,178.88,5.5873]
[1755575159728,3.06,179.01,178.9,3.18]
[1755575160817,3.06,179.01,178.8,3.18]
[1755575161019,3.06,179.01,178.82,5.5891]
[1755575161214,3.06,179.01,178.83,3.18]
[1755575161627,3.06,179.01,178.79,3.18]
[1755575162230,3.06,179.01,178.83,3.18]
[1755575162730,3.06,178.99,178.83,3.18]
[1755575162919,3.06,178.98,178.83,3.18]
[1755575163236,3.06,178.97,178.83,3.18]
[1755575164323,3.06,178.96,178.83,3.18]
[1755575165232,16.79,179.0,178.81,3.18]
[1755575165528,3.06,179.0,178.81,3.18]
[1755575165824,0.03688575,178.92,178.9,3.18]
[1755575166030,3.06,179.0,178.91,3.18]
[1755575166224,3.06,179.0,178.91,8.7665]
[1755575166531,375.32,179.01,178.91,8.7665]
[1755575166718,3.06,179.05,178.91,3.18]
[1755575167225,3.78242522,179.04,178.96,0.03615995]
[1755575167421,18.9434052,179.05,178.86,3.18]
[1755575167422,3.06,179.03,178.86,3.18]
[1755575167823,15.8834052,178.99,178.81,3.18]
[1755575168024,3.06,178.97,178.81,3.18]
[1755575168229,3.06,178.95,178.81,3.18]
[1755575168429,375.46,178.98,178.87,3.18]
[1755575168622,3.06,179.0,178.87,3.18]
[1755575169224,3.06,179.0,178.72,15.8834052]
[1755575169427,3.06,179.0,178.83,3.18]
[1755575170030,3.06,179.0,178.9,0.04101169]
[1755575170230,3.78631689,178.99,178.9,0.04101169]
[1755575170436,6.84508437,178.98,178.9,0.04101169]
[1755575170731,3.06,178.98,178.9,0.04101169]
[1755575171035,3.06,178.98,178.83,3.18]
[1755575171232,3.06,178.98,178.92,0.03758282]
[1755575172029,3.06,178.98,178.7,62.0]
[1755575172030,3.06,178.96,178.71,3.18]
[1755575172229,3.78733871,178.95,178.71,3.18]
[1755575172433,3.06,178.94,178.71,3.18]
[1755575172632,3.06,178.94,178.76,3.18]
[1755575172836,3.06,178.92,178.76,3.18]
[1755575173035,3.06,178.9,178.76,3.18]
[1755575174433,391.4034052,178.95,178.76,3.18]
[1755575174434,394.4634052,178.95,178.76,3.18]
[1755575174626,3.06,178.93,178.76,3.18]
[1755575175034,3.79300958,178.92,178.76,3.18]
[1755575175238,3.06,178.93,178.76,3.18]
[1755575175436,3.06,178.93,178.78,3.18]
[1755575176538,3.06,178.91,178.78,3.18]
[1755575179540,170.46,178.93,178.78,3.18]
[1755575179745,170.46,178.93,178.82,3.18]
[1755575180337,170.46,178.93,178.82,8.7691]
[1755575180535,378.58,178.95,178.71,15.8834052]
[1755575180536,375.52,178.95,178.72,3.18]
[1755575181442,169.66,178.99,178.72,3.18]
[1755575181645,169.66,178.99,178.76,3.18]
[1755575182239,169.66,178.99,178.87,3.18]
[1755575182434,3.06,179.0,178.87,3.18]
[1755575182633,375.64,179.05,178.87,3.18]
[1755575182634,2.89,179.04,178.87,3.18]
[1755575183241,2.89,179.04,178.91,5.5863]
[1755575183441,2.89,179.04,178.92,3.0]
[1755575185536,2.89,179.04,178.82,375.64]
[1755575185742,2.89,179.02,178.83,3.0]
[1755575186041,2.89,179.0,178.83,3.0]
[1755575186245,2.89,178.98,178.83,3.0]
[1755575186544,2.89,178.98,178.84,5.5887]
[1755575186746,2.89,179.03,178.84,3.0]
[1755575187140,2.89,179.0,178.84,3.0]
[1755575187451,2.89,178.98,178.84,3.0]
[1755575188348,2.89,178.96,178.84,3.0]
[1755575189739,2.89,178.94,178.77,3.0]
[1755575190045,2.89,178.92,178.77,3.0]
[1755575190440,15.8834052,179.01,178.82,5.5893]
[1755575190644,19.68,178.99,178.83,3.0]
[1755575190850,2.89,178.97,178.83,3.0]
[1755575191051,3.78726805,178.96,178.83,3.0]
[1755575191347,2.89,178.97,178.83,3.0]
[1755575191548,3.7905015,178.96,178.83,3.0]
[1755575191751,2.89,178.97,178.83,3.0]
[1755575191952,3.79060539,178.96,178.83,3.0]
[1755575192253,2.89,178.97,178.83,3.0]
[1755575193047,3.79402301,178.96,178.83,3.0]
[1755575193248,2.89,178.97,178.83,3.0]
[1755575193446,3.79728397,178.96,178.83,3.0]
[1755575193648,3.79728397,178.95,178.83,3.0]
[1755575193845,2.89,178.97,178.83,3.0]
[1755575194046,3.79708414,178.96,178.83,3.0]
[1755575194254,2.89,178.97,178.83,3.0]
[1755575194255,169.97,178.97,178.83,3.0]
[1755575194449,169.85,178.97,178.83,3.0]
[1755575194648,2.89,178.97,178.86,5.5878]
[1755575194848,2.89,178.97,178.87,3.0]
[1755575195564,3.80322095,178.96,178.82,3.0]
[1755575195850,6.69322095,178.95,178.82,3.0]
[1755575196054,3.80322095,178.94,178.82,3.0]
[1755575197257,169.51,179.0,178.86,3.0]
[1755575197457,3.80528553,178.99,178.86,3.0]
[1755575197653,169.51,179.0,178.86,3.0]
[1755575198255,3.80922736,178.99,178.86,3.0]
[1755575198456,169.51,179.0,178.86,3.0]
[1755575198655,3.80958568,178.99,178.86,3.0]
[1755575198851,6.69958568,178.98,178.86,3.0]
[1755575199058,20.96035175,178.97,178.77,3.0]
[1755575199257,8.24961701,178.96,178.77,3.0]
[1755575199459,2.89,178.94,178.77,3.0]
[1755575200057,3.80754131,178.93,178.77,3.0]
[1755575200259,3.80798391,178.92,178.8,3.0]
[1755575200457,2.89,178.94,178.8,3.0]
[1755575200659,3.80988335,178.93,178.8,3.0]
[1755575200961,2.89,178.94,178.8,3.0]
[1755575201162,3.80970657,178.93,178.8,3.0]
[1755575201464,2.89,178.94,178.8,3.0]
[1755575202057,2.89,178.94,178.8,8.5899]
[1755575202258,3.81224274,178.93,178.8,3.0]
[1755575202463,2.89,178.91,178.8,3.0]
[1755575202659,3.81268648,178.9,178.8,3.0]
[1755575203363,2.89,178.91,178.8,3.0]
[1755575204273,2.89,178.91,178.8,8.5897]
[1755575204765,2.89,178.91,178.81,5.5896]
[1755575204964,2.89,178.91,178.82,3.0]
[1755575205167,9.82073474,178.96,178.82,3.0]
[1755575205362,6.70584091,178.95,178.82,3.0]
[1755575205563,2.89,178.95,178.82,3.0]
[1755575206069,3.81703719,178.94,178.82,3.0]
[1755575206267,2.89,178.95,178.82,3.0]
[1755575206467,3.81744884,178.94,178.82,3.0]
[1755575206661,2.89,178.95,178.82,3.0]
[1755575206863,2.89,178.93,178.82,3.0]
[1755575209465,3.82804052,178.92,178.82,3.0]
[1755575209671,6.71804052,178.91,178.82,3.0]
[1755575209868,2.89,178.91,178.82,3.0]
[1755575212372,2.95,178.95,178.82,3.0]
[1755575212773,375.64,178.97,178.86,3.02]
[1755575213166,375.64,178.97,178.82,3.02]
[1755575213167,2.95,178.95,178.82,3.02]
[1755575213473,2.95,178.93,178.82,3.02]
[1755575213668,3.8316844,178.92,178.82,3.02]
[1755575213873,2.95,178.93,178.82,3.02]
[1755575214066,3.83119365,178.92,178.82,3.02]
[1755575214266,2.95,178.93,178.82,3.02]
[1755575214468,3.83141425,178.92,178.82,3.02]
[1755575214665,2.95,178.93,178.82,3.02]
[1755575214871,3.83163971,178.92,178.82,3.02]
[1755575215166,2.95,178.93,178.82,3.02]
[1755575215371,3.83180905,178.92,178.82,3.02]
[1755575215572,2.95,178.93,178.82,3.02]
[1755575215773,3.83120619,178.92,178.82,3.02]
[1755575215975,3.83120619,178.91,178.82,3.02]
[1755575216169,2.95,178.93,178.77,3.02]
[1755575216470,2.95,178.91,178.77,3.02]
[1755575216676,3.83041769,178.9,178.77,3.02]
[1755575216972,2.95,178.91,178.77,3.02]
[1755575217169,3.83041361,178.9,178.77,3.02]
[1755575217375,2.95,178.91,178.77,3.02]
[1755575217675,3.83044294,178.9,178.77,3.02]
[1755575217974,2.95,178.91,178.77,3.02]
[1755575218166,3.83044989,178.9,178.77,3.02]
[1755575218463,2.95,178.91,178.77,8.6108]
[1755575218667,3.83088824,178.9,178.77,8.6108]
[1755575218867,2.95,178.91,178.77,3.02]
[1755575219064,3.83071256,178.9,178.77,3.02]
[1755575219264,2.95,178.91,178.77,3.02]
[1755575219476,2.95,178.91,178.78,5.5905]
[1755575219873,2.95,178.91,178.79,3.02]
[1755575220379,402.25073474,178.97,178.79,3.02]
[1755575220380,2.95,178.96,178.79,3.02]
[1755575220579,2.95,179.0,178.89,3.02]
[1755575221373,2.95,178.98,178.85,3.02]
[1755575221680,2.95,178.98,178.88,3.02]
[1755575222983,2.95,179.04,178.88,3.02]
[1755575223180,2.95,179.02,178.88,3.02]
[1755575223383,2.95,179.02,178.84,3.02]
[1755575223582,2.95,179.02,178.85,3.02]
[1755575224077,2.95,179.02,178.91,3.02]
[1755575226179,2.95,179.02,178.92,5.586]
[1755575226374,2.95,179.06,178.93,3.02]
[1755575227584,2.95,179.06,178.93,8.6057]
[1755575227882,2.95,179.06,178.93,3.02]
[1755575228078,2.95,179.06,178.94,3.02]
[1755575228683,2.95,179.06,178.94,8.6056]
[1755575228883,2.95,179.06,178.94,3.02]
[1755575234585,2.95,179.04,178.89,3.02]
[1755575234778,2.95,179.02,178.89,3.02]
[1755575237582,165.1,179.01,178.89,3.02]
[1755575237884,168.05,179.02,178.89,3.02]
[1755575238282,168.05,179.02,178.86,3.02]
[1755575238796,2.95,179.0,178.86,3.02]
[1755575243995,9.82073474,178.96,178.8,3.2]
[1755575244194,3.02,178.95,178.8,3.2]
[1755575244399,3.02,178.93,178.8,3.2]
[1755575245492,3.02,178.93,178.73,9.31784295]
[1755575245799,3.02,178.88,178.7,3.2]
[1755575245989,3.02,178.86,178.71,5.5927]
[1755575246197,167.98,178.86,178.72,3.2]
[1755575246396,3.02,178.85,178.72,3.2]
[1755575247690,3.02,178.85,178.74,5.5916]
[1755575247892,3.02,178.85,178.75,3.2]
[1755575248499,164.96,178.86,178.64,9.82073474]
[1755575248696,164.96,178.86,178.66,3.2]
[1755575249097,164.96,178.86,178.74,3.2]
[1755575249992,167.98,178.86,178.74,3.2]
[1755575250902,3.02,178.84,178.65,3.2]
[1755575251104,3.02,178.82,178.65,3.2]
[1755575252007,5.2702915,178.81,178.65,3.2]
[1755575252300,3.02,178.82,178.65,3.2]
[1755575252502,5.26963187,178.81,178.65,3.2]
[1755575252697,3.02,178.82,178.65,3.2]
[1755575252892,3.02,178.79,178.65,3.2]
[1755575253106,3.02,178.77,178.65,3.2]
[1755575255512,5.25442652,178.76,178.65,3.2]
[1755575255697,3.02,178.77,178.65,3.2]
[1755575256005,9.82073474,178.8,178.65,8.7946]
[1755575256299,9.82073474,178.8,178.66,3.2]
[1755575256500,8.27273603,178.79,178.66,3.2]
[1755575256706,5.25273603,178.78,178.66,3.2]
[1755575256905,3.02,178.79,178.66,3.2]
[1755575257103,5.25264983,178.78,178.66,3.2]
[1755575257310,3.02,178.79,178.66,3.2]
[1755575257498,3.02,178.83,178.7,5.5929]
[1755575257801,3.02,178.83,178.71,3.2]
[1755575257998,3.02,178.83,178.72,5.5925]
[1755575258200,3.02,178.87,178.66,3.2]
[1755575258401,5.25195947,178.86,178.66,3.2]
[1755575258702,3.02,178.87,178.7,9.82073474]
[1755575258908,3.02,178.87,178.71,3.2]
[1755575259107,375.48,178.92,178.71,3.2]
[1755575259108,3.02,178.91,178.71,3.2]
[1755575259308,5.25124805,178.9,178.75,5.5915]
[1755575259504,3.02,178.87,178.64,3.2]
[1755575259803,3.02,178.87,178.74,5.5918]
[1755575260008,3.02,178.87,178.75,3.2]
[1755575261201,3.02,178.87,178.77,3.2]
[1755575263614,3.02,178.87,178.64,3.2]
[1755575263911,3.02,178.87,178.72,9.82073474]
[1755575264109,3.02,178.87,178.76,5.591]
[1755575264308,3.02,178.87,178.77,3.2]
[1755575264503,3.02,178.91,178.77,3.2]
[1755575264706,3.02,178.91,178.8,3.2]
[1755575265601,3.02,178.89,178.73,3.2]
[1755575265806,3.02,178.87,178.73,3.2]
[1755575266404,3.02,178.85,178.64,3.2]
[1755575266706,3.02,178.83,178.64,8.795]
[1755575266912,3.02,178.83,178.65,3.2]
[1755575267106,9.82073474,178.76,178.58,4.17390331]
[1755575267414,3.02,178.74,178.58,3.2]
[1755575267605,5.2497513,178.73,178.58,3.2]
[1755575267910,3.02,178.74,178.6,3.2]
[1755575269606,5.31822344,178.73,178.6,3.2]
[1755575269911,3.02,178.74,178.6,3.2]
[1755575270605,3.02,178.72,178.6,3.2]
[1755575271103,5.31802252,178.71,178.6,3.2]
[1755575271405,3.02,178.69,178.52,3.2]
[1755575271606,5.31489743,178.68,178.52,3.2]
[1755575271807,5.31489743,178.67,178.52,3.2]
[1755575272114,3.02,178.69,178.54,3.2]
[1755575272316,5.31509227,178.68,178.54,3.2]
[1755575272612,3.02,178.69,178.54,3.2]
[1755575272613,5.31509227,178.67,178.54,3.2]
[1755575272803,3.02,178.69,178.54,3.2]
[1755575273003,3.08,178.77,178.52,2.9]
[1755575273209,3.08,178.75,178.52,2.9]
[1755575273404,3.08,178.73,178.53,5.5984]
[1755575273612,3.08,178.71,178.54,2.9]
[1755575273916,5.31433669,178.7,178.54,2.9]
[1755575274110,5.31433669,178.69,178.54,2.9]
[1755575274305,5.31433669,178.68,178.54,2.9]
[1755575274513,5.31433669,178.67,178.54,2.9]
[1755575274714,3.08,178.79,178.6,2.9]
[1755575274903,3.08,178.79,178.63,2.9]
[1755575275104,3.08,178.79,178.64,2.9]
[1755575275308,3.08,178.79,178.67,5.594]
[1755575275513,3.08,178.79,178.68,2.9]
[1755575276309,3.08,178.79,178.69,5.5934]
[1755575276518,3.08,178.79,178.68,2.9]
[1755575277718,3.08,178.83,178.68,2.9]
[1755575278115,3.08,178.83,178.69,5.5931]
[1755575278312,3.08,178.83,178.68,2.9]
[1755575278806,3.08,178.83,178.69,5.5933]
[1755575279213,3.08,178.83,178.68,8.4937]
[1755575280216,3.08,178.83,178.68,2.9]
[1755575280820,3.08,178.87,178.68,2.9]
[1755575281119,3.08,178.87,178.54,20.51354295]
[1755575281120,3.08,178.85,178.57,15.97474065]
[1755575281321,3.08,178.83,178.59,2.9]
[1755575281618,3.08,178.83,178.6,2.9]
[1755575281826,3.08,178.81,178.65,2.9]
[1755575282318,3.08,178.79,178.45,11.2015]
[1755575282515,3.08,178.76,178.53,2.9]
[1755575282810,3.08,178.74,178.55,2.9]
[1755575283016,3.08,178.72,178.55,2.9]
[1755575284320,3.08,178.8,178.61,5.5956]
[1755575284619,3.08,178.8,178.62,2.9]
[1755575284918,3.08,178.85,178.63,2.9]
[1755575285415,3.08,178.85,178.73,5.5919]
[1755575285620,3.08,178.85,178.73,2.9]
[1755575286417,3.92742737,178.84,178.73,2.9]
[1755575286618,3.08,178.85,178.73,2.9]
[1755575287121,3.08,178.85,178.66,5.5943]
[1755575287317,3.08,178.83,178.64,2.9]
[1755575287511,15.97474065,178.87,178.64,2.9]
[1755575287512,3.08,178.81,178.64,2.9]
[1755575287713,3.92816218,178.8,178.64,2.9]
[1755575287929,3.08,178.81,178.65,2.9]
[1755575288222,375.88,178.9,178.65,2.9]
[1755575288423,3.08,178.85,178.65,2.9]
[1755575288727,3.93153095,178.84,178.71,5.5927]
[1755575288925,3.93153095,178.84,178.61,391.85474065]
[1755575288926,3.08,178.83,178.7,2.9]
[1755575289219,3.08,178.81,178.66,8.4944]
[1755575289414,3.93153095,178.8,178.66,2.9]
[1755575289612,3.08,178.79,178.66,2.9]
[1755575290518,3.93609469,178.78,178.62,2.9]
[1755575290725,15.97474065,178.88,178.62,2.9]
[1755575290726,3.08,178.77,178.62,2.9]
[1755575291327,3.08,178.77,178.64,5.5949]
[1755575291619,3.08,178.77,178.62,2.9]
[1755575291821,3.08,178.81,178.69,2.9]
[1755575292516,3.08,178.81,178.73,0.03672661]
[1755575296116,3.08,178.79,178.73,0.03672661]
[1755575296416,3.08,178.86,178.73,0.03672661]
[1755575296617,3.08,178.84,178.64,2.9]
[1755575296816,10.88930784,178.85,178.64,2.9]
[1755575296817,3.08,178.82,178.64,2.9]
[1755575297026,3.08,178.8,178.64,2.9]
[1755575297229,3.08,178.8,178.64,8.495]
[1755575297526,3.08,178.8,178.65,2.9]
[1755575297723,3.93624148,178.79,178.65,2.9]
[1755575297924,3.08,178.8,178.65,2.9]
[1755575298124,3.08,178.78,178.65,2.9]
[1755575299422,3.08,178.87,178.7,5.5931]
[1755575299724,3.08,178.85,178.71,2.9]
[1755575299934,3.08,178.83,178.71,2.9]
[1755575301124,0.0356276,178.79,178.71,2.9]
[1755575301929,0.0356276,178.79,178.67,2.9]
[1755575302128,3.08,178.78,178.67,2.9]
[1755575302523,3.08,178.78,178.63,167.57]
[1755575303239,2.91,178.76,178.63,167.57]
[1755575303528,2.91,178.71,178.58,3.11]
[1755575304932,0.03902215,178.66,178.58,3.11]
[1755575309339,0.03902215,178.66,178.6,5.5961]
[1755575309540,0.03902215,178.66,178.54,3.11]
[1755575310037,2.91,178.72,178.6,3.11]
[1755575310241,0.03640262,178.62,178.51,3.11]
[1755575310633,2.91,178.64,178.51,3.11]
[1755575311034,0.04187183,178.58,178.51,3.11]
[1755575312329,0.04187183,178.58,178.46,4.08462611]
[1755575312535,2.95187183,178.58,178.46,3.11]
[1755575312733,2.91,178.58,178.46,3.11]
[1755575313144,0.0410227,178.54,178.46,3.11]
[1755575313941,2.9510227,178.54,178.46,3.11]
[1755575316041,0.0410227,178.54,178.46,3.11]
[1755575316247,2.9510227,178.54,178.45,164.4]
[1755575316640,2.9510227,178.54,178.42,379.11]
[1755575316840,2.9510227,178.54,178.37,167.51]
[1755575317047,2.91,178.6,178.37,164.4]
[1755575317343,2.91,178.6,178.46,3.11]
[1755575317535,2.91,178.6,178.49,5.5997]
[1755575317738,2.91,178.6,178.5,3.11]
[1755575317934,376.16,178.72,178.5,3.11]
[1755575318140,2.91,178.7,178.52,5.5988]
[1755575318335,2.91,178.68,178.53,3.11]
[1755575319644,0.03954301,178.62,178.53,3.11]
[1755575320150,2.91,178.61,178.59,0.04246065]
[1755575320446,0.03954301,178.62,178.59,0.04246065]
[1755575321040,0.03954301,178.62,178.59,3.15246065]
[1755575321238,0.03954301,178.62,178.59,0.04246065]
[1755575321453,0.03954301,178.62,178.61,3.11]
[1755575321642,0.03954301,178.62,178.59,0.04246065]
[1755575322342,2.91,178.61,178.59,0.04246065]
[1755575323251,0.03954301,178.62,178.59,0.04246065]
[1755575323549,2.94954301,178.62,178.59,0.04246065]
[1755575324043,2.91,178.61,178.59,0.04246065]
[1755575324349,2.91,178.6,178.59,0.04246065]
[1755575324741,3.47,178.6,178.47,3.11]
[1755575324945,2.91,178.6,178.47,3.11]
[1755575325545,2.91,178.6,178.44,164.3]
[1755575325546,5.5972,178.58,178.52,3.11]
[1755575325847,2.91,178.64,178.52,3.11]
[1755575326054,0.04050828,178.57,178.52,3.11]
[1755575326243,0.04050828,178.57,178.54,3.11]
[1755575326448,0.04050828,178.57,178.48,3.11]
[1755575327150,2.95050828,178.57,178.48,3.11]
[1755575327946,2.95050828,178.57,178.44,3.11]
[1755575328459,2.91,178.57,178.44,3.11]
[1755575328848,0.03923751,178.53,178.44,3.11]
[1755575329054,0.03923751,178.53,178.46,3.11]
[1755575329251,0.03923751,178.53,178.47,5.6003]
[1755575329451,0.03923751,178.53,178.46,3.11]
[1755575330555,0.03923751,178.53,178.42,167.37]
[1755575330950,2.91,178.54,178.42,167.37]
[1755575331259,0.03784677,178.49,178.42,167.37]
[1755575331950,0.03784677,178.49,178.42,172.9719]
[1755575332255,0.03784677,178.49,178.42,167.37]
[1755575332551,0.03784677,178.49,178.43,5.6016]
[1755575333356,6.06330792,178.67,178.44,3.11]
[1755575333657,3.16,178.66,178.47,15.97474065]
[1755575333852,3.16,178.66,178.48,65.11]
[1755575334052,3.16,178.66,178.49,3.11]
[1755575334358,3.16,178.66,178.51,3.11]
[1755575334656,3.16,178.66,178.57,3.11]
[1755575335046,3.16,178.71,178.57,3.11]